Cogmind - Beta 13 @@@ ROGUE MODE // 2024.04.16 @ 11:08:51 Player: SVIT13 Result: Self-destructed Performance ------------- Evolutions (1) 500 Regions Visited (2) 400 Robots Destroyed (12) 60 Value Destroyed (248) 248 Prototype IDs (2) 40 Alien Tech Used (0) 0 Bonus (0) 0 TOTAL SCORE: 1248 Bonus ------- None Cogmind --------- Core Integrity 266/400 Matter 183/300 Energy 75/100 System Corruption 0% Temperature Warm (191) Movement Rolling (145) Ox3 Location -9/Materials Parts ------- > --- POWER (1) -------- (None) > --- PROPULSION (2) --- Wheel Compact Wheel > --- UTILITY (3) ------ High-capacity Storage Unit > --- WEAPON (3) ------- Beam Cannon Beam Cannon Rocket Launcher > --- INVENTORY (20) --- Ion Engine Aluminum Leg Aluminum Leg Compact Wheel Small Storage Unit Medium Storage Unit Huge Storage Unit EM Pulse Gun Grenade Launcher Datajack Mining Laser Peak State ------------ > --- POWER ------------ Light Ion Engine > --- PROPULSION ------- Wheel Compact Wheel > --- UTILITY ---------- High-capacity Storage Unit Improved Terrain Scanner > --- WEAPON ----------- Beam Cannon Beam Cannon Rocket Launcher > --- INVENTORY -------- Ion Engine Aluminum Leg Aluminum Leg Compact Wheel Small Storage Unit Medium Storage Unit Huge Storage Unit EM Pulse Gun Grenade Launcher Datajack Mining Laser [Rating: 12] Favorites ----------- Power Light Ion Engine Engine Light Ion Engine Propulsion Compact Wheel Wheel Compact Wheel Utility Improved Terrain Scanner Device Improved Terrain Scanner Storage Huge Storage Unit Weapon Beam Cannon Energy Gun EM Pulse Gun Energy Cannon Beam Cannon Ballistic Gun Light Assault Rifle Launcher Rocket Launcher Special Weapon Mining Laser Special Melee Weapon Datajack Build | -11 -10 -9 ------- Run | Yrd Mat Mat Slots Evolved 2 | . . 2 Power . | . . . Propulsion . | . . . Utility 1 | . . 1 Weapon 1 | . . 1 Parts Attached 22 | 8 7 7 Power 1 | 1 . . Engine 1 | 1 . . Core . | . . . Reactor . | . . . Propulsion 4 | 3 . 1 Treads . | . . . Leg . | . . . Wheel 4 | 3 . 1 Hover . | . . . Flight . | . . . Utility 4 | 2 2 . Device 1 | 1 . . Storage 3 | 1 2 . Processor . | . . . Hackware . | . . . Protection . | . . . Artifact . | . . . Weapon 13 | 2 5 6 Energy Gun 1 | 1 . . Energy Cannon 5 | . 4 1 Ballistic Gun 1 | 1 . . Ballistic Cannon . | . . . Launcher 3 | . . 3 Special Weapon 2 | . 1 1 Impact Weapon . | . . . Slashing Weapon . | . . . Piercing Weapon . | . . . Special Melee Weapon 1 | . . 1 Unidentified Prototypes . | . . . Parts Lost 2 | . . 2 Power 1 | . . 1 Propulsion . | . . . Utility 1 | . . 1 Weapon . | . . . Highest Loss Streak 2 | . . 2 To Critical Strikes . | . . . Average Slot Usage (%) 94 | . 100 84 Engine 12 | . 14 8 Wheel 26 | . 28 22 Device 12 | . 14 9 Storage 13 | . 14 11 Energy Cannon 18 | . 17 20 Launcher 3 | . . 11 Special Weapon 6 | . 9 1 Naked Turns . | . . . Heaviest Build 90 | 12 90 54 Greatest Support 32 | 32 26 26 Greatest Overweight (x) 3 | . 3 3 Average Overweight (x) 1 | . 2 2 Largest Inventory Capacity 25 | 8 25 20 Average Capacity 20 | 7 23 20 Most Carried 11 | 6 11 11 Average Carried 8 | 3 8 10 Final Capacity 20 | 8 20 20 Final Carried 11 | 5 11 11 Class Distribution -------------------- 72% | Mutant 23% | Skirmisher 3% | Gunner Dominant Class ---------------- Mutant | -10/Materials Skirmisher | -9/Materials Resources | -11 -10 -9 ----------- Run | Yrd Mat Mat Matter Collected 427 | 289 50 88 Remotely . | . . . Salvage Created 352 | 130 21 201 Parts 19 | 6 4 9 Haulers Intercepted . | . . . Recyclers Shooed 1 | . . 1 Parts Field Recycled . | . . . Retrieved Matter . | . . . Parts Self-Destructed . | . . . Prevented . | . . . Kills | -11 -10 -9 ------- Run | Yrd Mat Mat Combat Hostiles Destroyed 4 | . . 4 Cannons 2 | . . 2 AOE 2 | . . 2 Classes Destroyed 6 | 2 2 2 Tunneler 2 | 2 . . Recycler 2 | 1 . 1 Operator 1 | . 1 . Watcher 3 | . 2 1 Grunt 2 | . . 2 Sentry 2 | . . 2 Best Kill Streak 4 | 2 2 4 Combat Bots Only 3 | . . 3 Max Kills in Single Turn 2 | 1 1 2 Gunslinging . | . . . Exploded 2 | . . 2 Melee . | . . . Uniques/NPCs Destroyed . | . . . Combat | -11 -10 -9 -------- Run | Yrd Mat Mat Hostile Shots Fired 21 | . . 21 Missed 4 | . . 4 Damage Taken 364 | 10 . 354 Core 144 | 10 . 134 Absorbed by Shields . | . . . Core Remaining (%) 96 | 96 96 . Volleys Fired 41 | 9 17 15 Largest 3 | 2 2 3 Hottest 160 | 60 160 153 Shots Fired 73 | 18 23 32 Gun 18 | 18 . . Cannon 33 | . 12 21 Launcher 8 | . . 8 Special 14 | . 11 3 Kinetic 9 | 9 . . Thermal 47 | . 23 24 Explosive 8 | . . 8 Electromagnetic 9 | 9 . . Robot Hit Streak 9 | 5 3 9 Robot Miss Streak 5 | 2 4 5 Penetration Max . | . . . Secondary Targets . | . . . Shots Hit Robots 40 | 12 7 21 Core Hits 16 | 3 3 10 Critical Kills . | . . . Critical Parts Destroyed . | . . . Critical Strikes . | . . . Melee Attacks . | . . . Impact . | . . . Slashing . | . . . Piercing . | . . . Sneak Attacks . | . . . Combat Hostiles . | . . . Follow-up Attacks . | . . . Damage Inflicted 965 | 163 176 626 Guns 133 | 133 . . Cannons 386 | . 104 282 Explosions 374 | 30 . 344 Melee . | . . . Ramming . | . . . Kinetic 40 | 40 . . Thermal 488 | 30 176 282 Explosive 344 | . . 344 Electromagnetic 93 | 93 . . Impact . | . . . Slashing . | . . . Piercing . | . . . Highest Corruption . | . . . Average Corruption . | . . . Corruption Purged . | . . . Corruption Blocked . | . . . Overload Shots . | . . . Overflow Damage 22 | 18 4 . Projectiles 4 | . 4 . Explosions 18 | 18 . . Melee . | . . . Knockbacks . | . . . Impact . | . . . Kinetic . | . . . Secondary . | . . . Self-Inflicted Damage 48 | 11 . 37 Shots 2 | 1 . 1 Rammed . | . . . Targets Rammed . | . . . Kicked . | . . . Crushed . | . . . Highest Temperature 667 | 52 300 667 Average Temperature 192 | 22 133 322 Received Heat Transfer 90 | . . 90 Effects 10 | . . 10 Shutdowns 1 | . . 1 Interference 4 | . . 4 Matter Decay 2 | . . 2 Short Circuit 1 | . . 1 Damage (major) 1 | . . 1 Damage (core) 1 | . . 1 Siege Activations . | . . . Robots Corrupted . | . . . Combat Hostiles . | . . . Parts Fried 1 | 1 . . Impact Corruptions . | . . . Robots Melted . | . . . Combat Hostiles . | . . . Parts Melted 1 | . 1 . Heat Transferred 1014 | 50 372 592 Parts Sabotaged . | . . . Parts Stolen . | . . . Parts Stripped . | . . . Power Chain Reactions 1 | 1 . . Alert | -11 -10 -9 ------- Run | Yrd Mat Mat Peak Influence 193 | 15 74 193 Initial 31 | . 9 31 Average 44 | 5 35 86 Maximum Alert Level . | . . . Low Security (%) 100 | 100 100 100 Level 1 . | . . . Level 2 . | . . . Level 3 . | . . . Level 4 . | . . . Level 5 . | . . . High Security . | . . . Max Security . | . . . Squads Dispatched 1 | . . 1 Investigation . | . . . Extermination . | . . . Reinforcement 1 | . . 1 Assault . | . . . Garrison . | . . . Intercept . | . . . Searches Triggered . | . . . Construction Impeded . | . . . Haulers Reinforced . | . . . Active Scanning Responses . | . . . Cargo Convoy Interrupts . | . . . Stealth | -11 -10 -9 --------- Run | Yrd Mat Mat Distress Signals . | . . . Communications Jammed . | . . . Distress Signals . | . . . Times Spotted 13 | . 6 7 Peak Tracking Total 4 | . 2 4 Tactical Retreats . | . . . Traps | -11 -10 -9 ------- Run | Yrd Mat Mat Traps Triggered . | . . . Indirectly . | . . . Trap Hack Attempts . | . . . Triggered . | . . . Disarmed . | . . . Reprogrammed . | . . . Reused . | . . . Traps Extracted . | . . . Installed . | . . . Triggered . | . . . Machines | -11 -10 -9 ---------- Run | Yrd Mat Mat Machines Disabled . | . . . Max in Single Turn . | . . . Machines Repaired . | . . . Machines Dismantled . | . . . Machines Sabotaged . | . . . Overloaded Fab Kills . | . . . Hacking | -11 -10 -9 --------- Run | Yrd Mat Mat Machines Accessed 4 | . 3 1 Terminals 4 | . 3 1 Fabricators . | . . . Repair Stations . | . . . Recycling Units . | . . . Scanalyzers . | . . . Garrison Access . | . . . Total Hacks 9 | . 7 2 Successful 6 | . 4 2 Failed 3 | . 3 . Catastrophic . | . . . Database Lockouts . | . . . Manual . | . . . Terminals 9 | . 7 2 Fabricators . | . . . Repair Stations . | . . . Recycling Units . | . . . Scanalyzers . | . . . Garrison Access . | . . . Terminal Hacks 6 | . 4 2 Prototype ID Bank 1 | . 1 . Emergency Access Points 1 | . 1 . Dispatch Records 1 | . . 1 Maintenance Status 1 | . 1 . Zone Layout 2 | . 1 1 Fabricator Hacks . | . . . Repair Station Hacks . | . . . Recycling Unit Hacks . | . . . Scanalyzer . | . . . Garrison Access Hacks . | . . . Unauthorized Hacks . | . . . Terminals . | . . . Fabricators . | . . . Repair Stations . | . . . Recycling Units . | . . . Scanalyzers . | . . . Garrison Access . | . . . Data Cores Recovered 1 | . 1 . Used . | . . . Hacking Detections 2 | . 2 . Full Trace Events . | . . . Feedback Events . | . . . Feedback Blocked . | . . . Robot Schematics Acquired . | . . . Robots Built . | . . . Authchips . | . . . Time . | . . . Total Robot Build Rating . | . . . Part Schematics Acquired . | . . . Parts Built . | . . . Authchips . | . . . Time . | . . . Total Part Build Rating . | . . . Parts Repaired . | . . . Time . | . . . Parts Recycled . | . . . Recycled Matter . | . . . Retrieved Matter . | . . . Retrieved Components . | . . . Parts Scanalyzed . | . . . Part Schematics Acquired . | . . . Parts Damaged . | . . . Bothacking | -11 -10 -9 ------------ Run | Yrd Mat Mat Used RIF Installer . | . . . Robots Hacked . | . . . Non-combat . | . . . Combat . | . . . Robot Hacks Applied . | . . . Relay Couplers Released . | . . . Fabnet Peak Effective % . | . . . Robots Rewired . | . . . Allies Hacked . | . . . Hacks Repelled . | . . . Allies | -11 -10 -9 -------- Run | Yrd Mat Mat Total Allies . | . . . Largest Group . | . . . Highest-Rated Group . | . . . Highest-Rated Ally . | . . . Total Orders . | . . . Ally Attacks . | . . . Total Damage . | . . . Kills . | . . . Allies Corrupted . | . . . Allies Melted . | . . . Intel | -11 -10 -9 ------- Run | Yrd Mat Mat Robot Analysis Total . | . . . Derelict Logs Recovered . | . . . Drone Launches . | . . . Drone Recoveries . | . . . Exploration | -11 -10 -9 ------------- Run | Yrd Mat Mat Turns Passed 550 | 90 316 144 Spaces Moved 284 | 49 165 70 Core 4 | 4 . . Treads . | . . . Legs . | . . . Wheels 280 | 45 165 70 Hover . | . . . Flight . | . . . Fastest Speed 50 | 50 90 105 Average Speed 120 | 91 128 122 Slowest Speed 145 | 100 135 145 Overloaded Moves . | . . . Propulsion Burnouts . | . . . Robots Hopped . | . . . Cave-ins Triggered . | . . . Exploration Rate (%) 15 | 4 30 11 Regions Visited 2 Branch Regions . Pre-discovered Areas . | . . . Known Exits Taken . | . . . Unknown Exits Taken 2 | 1 1 . Scrap Searched . | . . . Spaces Dug 10 | . 7 3 Terrain Destroyed 72 | 2 7 63 Melee . | . . . Projectile 10 | . 7 3 AOE 62 | 2 . 60 Terrain Rammed . | . . . Walls Destroyed . | . . . Machines Disabled . | . . . Actions | -11 -10 -9 --------- Run | Yrd Mat Mat Total 391 | 77 221 93 Wait 25 | . 25 . Move 282 | 48 164 70 Hop . | . . . Pick Up 20 | 12 7 1 Fast Attach . | . . . Attach 8 | 7 . 1 Detach . | . . . Swap 14 | 1 7 6 Drop 1 | . 1 . Fire 41 | 9 17 15 Melee . | . . . Ram . | . . . Kick . | . . . Crush . | . . . Escape Stasis . | . . . Rewire . | . . . Trap . | . . . Miscellaneous . | . . . Route ------- -11/Scrapyard -10/Materials (discovered 3 exits: *Mat / [*Min] / [Sub]) -9/Materials History --------- Turn | Location | Event 24 | -11/Scrapyard | Discovered new exit (range 15) 91 | -11/Scrapyard | Entered Materials 223 | -10/Materials | Discovered new exit (range 6) 309 | -10/Materials | Build established: Mutant 329 | -10/Materials | Discovered new exit (range 13) 377 | -10/Materials | Discovered new exit (range 10) 407 | -10/Materials | Entered another Materials area 407 | -9/Materials | Evolved 2 slots: Utility x1, Weapon x1 551 | -9/Materials | Self-destructed Last Messages --------------- 00528_ Overheating: Short circuit. 00528_ The unstable cave ceiling collapses. 00530_ Imp. Terrain Scanner destroyed. 00532_ Y-45 Defender destroyed. 00537_ Overheating: Core damaged (-76). 00537_ The unstable cave ceiling collapses. 00538_ Overheating: Com. Wheel damaged (-3). 00539_ Overheating: System interference. 00539_ Beam Cannon temporarily disabled. 00540_ Overheating: Matter decay (-14). 00540_ The unstable cave ceiling collapses. 00540_ Acquired 15 matter. 00541_ Acquired 38 matter. 00541_ K-01 Serf collects debris. 00542_ Overheating: Matter decay (-23). 00544_ K-01 Serf collects debris. 00545_ Acquired 15 matter. 00548_ U-05 Engineer builds a Wall. 00548_ Acquired 20 matter. 00549_ K-01 Serf collects debris. Map ----- +----------------------------------------------------+ | ?????????????????#????????????????????????? | | ??????????????????????????????????????????? | | ????#???#?????? ??????????????????????????? | | ????????????????? ??????? ????????????????? | | ????????????#?????????????????????????????? | | ????#?????????????????????????????????????? | | ?????#????#???????????????????????????????? | | ????????#??????????????????#??????????????? | | ????????????????? ???????? +??????????????? | | ??????????????#?????????? #??????????????? | | ??????#######????????? ? #??????????????? | | ??????#] #???######## #??????????????? | | ??????# ##### #??????????????? | | ??????# #??????????????? | | ??????# ##### #??????????????? | | ??????# #??# ##########???????????? | | ??????### ####?## a # #???????????? | | ??????#?# ##??## # #???????????? | | ????????# #??## [[ #???????????? | | ????????# #??# [[ ##??????????? | | ????????# #??# # %! [[ # ????????? | | ????????# ##?# = = ! #u ???????? | | ????????# #??# =[ [ % #?????????? | | ????????# #??# #??????????? | | ????????# #??### * #??????????? | | ????????# ##???# =@= k #??????????? | | ????????# #????# #### #??????????? | | ????????# #????# #??########??????????? | | ???#??###+###### ##????????????????????? | | ??????# ?????#???????????????? | | ??????# """"""" # ?????????????????????? | | ??????# """"""" # ##????????????????????? | | ?##???# """"""" # #?????????????????????? | | ??????# """"""" # #?????????????????????? | | ??#???# """"""" + #?????????????????????? | | ??#??## # #?#???#???????????????? | | ???###" """T""" # #???#?????????????????? | | ####""########### #???#?????????????????? | | # ########### ??????????????????????? | | # T # ??????????????????????? | | # # ?????????????????????? | | # # ???????????????????????? | | # + ###+### ??????????????????????? | | # # ## ####???????????????????????? | | # # ## "" #??????????????????????????? | | # # ## "Y #??????????????????????????? | | # ###### "" ##?????????????????????????? | | ######????# #?#????????????????????????? | | ??????????# #??????????????????????????? | | ??????????# #??????????????????????????? | +----------------------------------------------------+ Best States ------------- Heat Dissipation 28 Energy Generation 10 Energy Capacity 125 Matter Stores 300 Matter Capacity 300 Sight Range 16 Terrain Scan Range 16 Terrain Scan Density 10 Evasion (%) 42 Item Schematics ----------------- None Robot Schematics ------------------ None Fabricated ------------ Nothing Alien Tech Used ----------------- None Achievements -------------- None Challenges ------------ None Game ------ Seed HardcellColdBattery Manual? 0 Play Time 00:11:42 Cumulative 5.1 hours Start 2024.04.16 @ 10:55:20 End 2024.04.16 @ 11:08:51 Sessions 1 Manual Loads 0 Difficulty Rogue Special Mode None Game No. 7 Rogue 7 Adventurer 0 Explorer 0 Win Type - Total 0 Types 0/0/0/0/0/0/0/0/0 Lore% 4 Gallery% 9 Achievement% 9 Wizard Run 0 Options --------- Layout 1 ASCII 0 Keyboard 0 Movement Mouse Keybinds 0 Fullscreen 0 Font 20/SmallcapsGlow Map View 50x35 Zoom Use 0% Tactical HUD 1 Map Filters NONE Filters NONE Steam 1 RUN: f4668f88-43e9-4e1a-a43c-dababe57555a